bitfinex/quotes_ETHUSD_20250314
["timestamp","ask_amount","ask_price","bid_price","bid_amount"]
[1741957626034,3.0,1908.5,1908.2,5.33990316]
[1741957626035,3.0,1908.5,1908.3,5.24019]
[1741957626535,3.0,1908.5,1908.2,0.90066316]
[1741957626536,11.127,1908.6,1908.4,5.33893289]
[1741957626739,3.0,1908.7,1908.6,5.23928]
[1741957627238,3.0,1908.7,1908.6,5.33798541]
[1741957627412,17.328,1908.8,1908.7,5.23916]
[1741957627618,6.02,1908.9,1908.8,5.23889]
[1741957627935,3.0,1909.1,1908.8,10.57595366]
[1741957628140,3.0,1909.1,1908.8,0.09817366]
[1741957628439,3.0,1909.1,1908.8,5.23868]
[1741957628629,3.0,1909.1,1908.9,0.09796365]
[1741957629216,8.23812,1909.1,1908.9,0.09796365]
[1741957629545,3.0,1908.9,1908.7,5.23914]
[1741957629712,3.0,1909.0,1908.7,5.23914]
[1741957629913,8.23842,1909.0,1908.6,5.23939]
[1741957630235,8.23842,1909.0,1908.7,5.23916]
[1741957630433,8.23876,1908.9,1908.5,5.2397]
[1741957630621,3.0,1908.7,1908.4,5.23977]
[1741957631143,3.0,1908.7,1908.5,5.23957]
[1741957631349,11.25865,1908.9,1908.5,5.2395]
[1741957631550,6.40872815,1909.3,1908.8,6.07049]
[1741957631847,6.02,1909.3,1909.1,5.2379]
[1741957632047,3.0,1909.3,1909.1,5.2379]
[1741957632349,11.155,1909.4,1909.1,5.23789]
[1741957632536,5.135,1909.4,1909.2,5.23768]
[1741957632920,5.135,1909.4,1909.3,5.23752]
[1741957633348,17.331,1909.5,1909.4,5.23724]
[1741957635152,17.331,1909.5,1909.2,5.23765]
[1741957635352,17.331,1909.5,1909.2,10.47528]
[1741957635653,17.331,1909.5,1909.4,5.23724]
[1741957635821,17.331,1909.5,1909.4,5.33096025]
[1741957636222,6.02,1909.6,1909.5,5.23697]
[1741957636418,6.41802059,1910.0,1909.5,5.23688]
[1741957636756,17.332,1910.2,1910.0,5.23546]
[1741957637049,3.0,1910.1,1909.9,5.23584]
[1741957637432,8.23541,1910.1,1909.7,5.23642]
[1741957637634,8.83108948,1910.1,1909.7,10.47275]
[1741957637830,27.7213848,1910.2,1909.8,5.2361]
[1741957638041,3.0,1910.1,1909.8,5.2361]
[1741957638758,5.23569,1910.0,1909.7,5.23633]
[1741957638951,5.23569,1910.0,1909.6,10.47325]
[1741957639156,1.347113,1910.0,1909.5,5.99884]
[1741957639369,3.0,1909.8,1909.5,5.99884]
[1741957640022,3.0,1909.8,1909.6,5.23642]
[1741957640226,3.0,1909.8,1909.6,5.23659]
[1741957640753,3.0,1909.8,1909.5,5.99883]
[1741957641059,5.23643,1909.7,1909.3,5.2375]
[1741957641226,5.2367,1909.6,1909.3,5.2375]
[1741957641427,3.0,1909.5,1909.1,6.00819]
[1741957641628,3.0,1909.3,1909.1,5.23789]
[1741957641829,5.23773,1909.3,1908.9,11.854429]
[1741957642026,3.0,1909.4,1909.0,5.23812]
[1741957642334,13.38203,1909.5,1909.2,5.23764]
[1741957642638,18.61921,1909.5,1909.1,5.238]
[1741957642834,5.23727,1909.4,1909.1,5.238]
[1741957643037,13.38203,1909.5,1909.1,5.23791]
[1741957643243,8.145,1909.5,1909.2,5.23767]
[1741957644154,15.75937448,1909.5,1909.1,5.23805]
[1741957644786,5.23738,1909.4,1909.0,10.47644]
[1741957645131,5.23738,1909.4,1909.1,5.23801]
[1741957645859,15.75937448,1909.5,1909.1,10.47598]
[1741957646060,5.23728,1909.4,1909.1,5.23797]
[1741957646466,20.99651448,1909.5,1909.1,5.23797]
[1741957646759,15.75937448,1909.5,1909.1,5.23797]
[1741957646940,5.23725,1909.4,1909.1,5.23797]
[1741957647364,5.23725,1909.4,1909.0,5.23831]
[1741957647543,8.23761,1909.3,1908.9,6.00888]
[1741957647858,8.23761,1909.3,1908.9,11.24734]
[1741957648068,9.02,1909.3,1908.7,0.7569]
[1741957648233,5.23863,1908.9,1908.6,5.23935]
[1741957648632,5.23863,1908.9,1908.6,10.47864]
[1741957648633,3.0,1908.9,1908.6,10.47864]
[1741957648833,3.0,1908.9,1908.6,5.23929]
[1741957649165,3.0,1908.9,1908.6,10.47855]
[1741957649331,3.0,1908.9,1908.7,5.23912]
[1741957650267,3.0,1908.9,1908.7,5.23914]
[1741957650862,3.0,1909.0,1908.8,0.09124525]
[1741957651043,3.0,1909.0,1908.7,5.23904]
[1741957651239,3.0,1909.0,1908.8,5.23889]
[1741957651456,8.14,1909.1,1908.9,5.98905]
[1741957651645,8.14,1909.1,1909.0,0.0911992]
[1741957652535,8.14,1909.1,1908.8,5.23888]
[1741957652732,8.14,1909.1,1909.0,0.09117898]
[1741957652959,8.14,1909.1,1908.9,5.2386]
[1741957653166,8.14,1909.1,1909.0,0.09117898]
[1741957653366,8.14,1909.1,1908.8,5.23888]
[1741957653570,8.14,1909.1,1909.0,0.09117898]
[1741957653866,8.14,1909.1,1908.8,5.23876]
[1741957654163,8.14,1909.1,1908.9,0.09138897]
[1741957654331,3.0,1909.2,1909.0,5.23807]
[1741957654534,3.0,1909.2,1909.1,5.23807]
[1741957654745,3.0,1909.2,1909.1,5.32903901]
[1741957657563,23.73649015,1909.6,1909.3,5.23737]
[1741957657863,17.332,1909.6,1909.3,5.23741]
[1741957658032,22.56873,1909.6,1909.4,0.09020781]
[1741957658230,3.0,1909.5,1909.4,0.09020781]
[1741957658433,3.0,1909.5,1909.3,5.23741]
[1741957658635,8.23697,1909.5,1909.4,0.09020781]
[1741957658836,11.31754,1909.5,1909.4,0.09020781]
[1741957659069,3.0,1909.3,1909.1,5.23798]
[1741957659266,3.0,1909.3,1909.0,11.24266]
[1741957659441,3.0,1909.5,1909.2,5.23777]
[1741957659635,3.0,1909.5,1909.3,5.2373]
[1741957659841,3.0,1909.5,1909.4,5.23724]
[1741957660042,3.0,1909.5,1909.3,6.0517]
[1741957660655,3.0,1909.5,1909.2,5.23766]
[1741957661171,8.23697,1909.5,1909.2,5.23766]
[1741957661368,3.0,1909.5,1909.2,10.47536]
[1741957661572,3.0,1909.5,1909.4,5.23724]
[1741957662160,3.0,1909.5,1909.4,6.04294]
[1741957664965,5.133,1909.8,1909.6,5.23645]
[1741957665149,3.0,1909.7,1909.5,5.23686]
[1741957665879,3.0,1909.8,1909.6,0.08940396]
[1741957667074,8.23619,1909.8,1909.6,0.08940396]
[1741957667447,13.47252,1909.8,1909.6,0.08940396]
[1741957667642,13.47252,1909.8,1909.4,6.04292]
[1741957667643,5.23642,1909.7,1909.4,6.04292]
[1741957667843,5.23642,1909.7,1909.5,0.08961381]
[1741957668048,5.23706,1909.5,1909.2,5.23768]
[1741957668276,10.362,1909.5,1909.3,0.0900336]
[1741957668479,5.23733,1909.4,1909.1,5.238]
[1741957668775,5.23733,1909.4,1909.2,0.09024352]
[1741957670681,3.0,1909.4,1909.2,5.32791352]
[1741957671854,3.0,1909.4,1909.2,6.43685285]
[1741957672154,3.0,1909.5,1909.4,5.23703]
[1741957672670,3.0,1909.5,1909.4,5.3268537]
[1741957676492,3.0,1909.5,1909.4,0.0898237]
[1741957676650,3.0,1909.5,1909.3,11.26829]
[1741957676855,3.0,1909.5,1909.4,0.0898237]
[1741957677085,3.0,1909.5,1909.3,11.26829]
[1741957677383,3.0,1909.5,1909.4,0.0898237]
[1741957677766,3.0,1909.5,1909.3,6.03076]
[1741957677966,3.0,1909.5,1909.4,0.0898237]
[1741957678283,8.23697,1909.5,1909.1,5.23801]
[1741957678598,8.23697,1909.5,1909.1,11.655915]
[1741957678754,13.47411,1909.5,1909.2,0.09024352]
[1741957678955,5.23747,1909.4,1909.2,0.09024352]
[1741957679272,10.47488,1909.4,1909.3,0.09004874]
[1741957679470,10.47488,1909.4,1909.0,11.24974]
[1741957679471,13.47488,1909.4,1909.0,6.0115]
[1741957679676,5.23754,1909.3,1909.0,6.0115]
[1741957679876,8.23741,1909.4,1909.1,0.09050904]
[1741957680184,3.0,1909.4,1909.1,5.32830904]
[1741957680388,8.23736,1909.4,1909.1,5.93846994]
[1741957680885,13.47477,1909.4,1909.1,5.32830904]
[1741957681089,8.23762,1909.3,1909.1,0.09050904]
[1741957681402,8.23762,1909.3,1908.8,11.29498]
[1741957681403,8.23832,1909.1,1908.7,5.23908]
[1741957681581,8.23832,1909.1,1908.6,0.8175]
[1741957681582,3.0,1909.1,1908.8,5.23872]
[1741957681759,3.0,1909.1,1908.8,5.762592]
[1741957682154,3.0,1909.1,1908.6,6.05678]
[1741957682359,5.23858,1909.0,1908.6,6.05678]
[1741957682587,5.2385,1909.0,1908.6,11.29607]
[1741957682889,10.47705,1909.0,1908.6,6.05678]
[1741957683091,5.2385,1909.0,1908.6,6.05678]
[1741957683387,8.23862,1908.9,1908.6,6.05678]
[1741957683785,3.0,1908.9,1908.6,6.05678]
[1741957684177,3.0,1908.9,1908.6,11.2961]
[1741957684587,3.0,1908.9,1908.6,6.05678]
[1741957685692,3.0,1909.1,1908.6,1.423178]
[1741957685991,3.0,1909.1,1909.0,5.23834]
[1741957686191,3.0,1909.1,1909.0,5.99184]
[1741957686497,3.0,1909.3,1909.1,5.23794]
[1741957686699,10.35399,1909.5,1909.2,5.23779]
[1741957687077,3.0,1909.4,1909.2,5.23779]
[1741957687580,10.75234452,1909.5,1909.2,5.23779]
[1741957687965,10.75237452,1909.5,1909.0,5.99168]
[1741957688190,3.0,1909.3,1909.0,6.590848]
[1741957688384,8.23758,1909.3,1909.0,6.590848]
[1741957688585,3.0,1909.3,1909.1,5.23802]
[1741957690466,3.0,1909.4,1909.3,5.23752]
[1741957690695,3.0,1909.4,1909.3,6.285051]
[1741957691273,3.0,1909.4,1909.3,1.047531]
[1741957691665,3.0,1909.4,1909.1,5.23802]
[1741957692205,12.8851891,1909.4,1909.0,11.829108]
[1741957693116,7.6478691,1909.4,1909.1,5.238]
[1741957693409,3.0,1909.4,1909.2,10.47532]
[1741957694524,3.0,1909.4,1909.2,5.23766]
[1741957695237,3.0,1909.4,1909.2,6.285228]
[1741957695926,3.0,1909.4,1909.3,0.08437204]
[1741957696800,12.8851091,1909.4,1909.3,0.08437204]
[1741957696997,5.23823,1909.1,1908.8,0.7644]
[1741957697201,5.23862,1908.9,1908.4,5.99275]
[1741957697515,8.23902,1908.8,1908.4,12.440925]
[1741957697693,8.23902,1908.8,1908.4,7.200955]
[1741957697894,12.8868891,1908.8,1908.4,6.448155]
[1741957698129,5.23918,1908.7,1908.4,6.448155]
[1741957698523,5.23918,1908.7,1908.3,5.24019]
[1741957698734,10.47912,1908.6,1908.2,5.99329]
[1741957699032,5.23975,1908.5,1908.1,5.24069]
[1741957699186,5.23975,1908.5,1908.2,5.24044]
[1741957700025,5.23975,1908.5,1908.1,5.24061]
[1741957700231,5.23975,1908.5,1908.1,6.364138]
[1741957700428,5.23975,1908.5,1908.1,11.604778]
[1741957700603,5.23975,1908.5,1908.1,6.364138]
[1741957700793,5.23999,1908.4,1908.1,6.364138]
[1741957700994,5.23999,1908.4,1908.1,5.24061]
[1741957701191,5.23999,1908.4,1908.0,5.99468]
[1741957701396,5.23999,1908.4,1908.0,5.99457]
[1741957701704,10.48016,1908.4,1908.0,5.99453]
[1741957701901,5.23999,1908.4,1908.0,5.99453]
[1741957702199,5.23999,1908.4,1908.0,11.23545]
[1741957702467,3.0,1908.4,1908.2,5.24043]
[1741957702942,3.0,1908.4,1908.2,5.24042]
[1741957703293,3.0,1908.6,1908.3,5.24026]
[1741957704398,8.23944,1908.6,1908.3,5.24026]
[1741957704827,8.23944,1908.6,1908.3,5.24017]
[1741957704828,3.0,1908.6,1908.3,5.24017]
[1741957705028,8.23944,1908.6,1908.3,5.24017]
[1741957706134,5.23972,1908.5,1908.2,5.24043]
[1741957706364,8.23944,1908.6,1908.2,5.24043]
[1741957706653,5.23972,1908.5,1908.2,5.24043]
[1741957706856,5.23972,1908.5,1908.1,10.48143]
[1741957707165,8.2401,1908.4,1908.0,11.2356]
[1741957707657,3.0,1908.6,1908.3,5.24014]
[1741957707815,3.0,1908.6,1908.2,5.24043]
[1741957708024,8.086,1908.6,1908.4,5.23991]
[1741957708221,3.0,1908.6,1908.3,6.01341]
[1741957708454,3.0,1908.6,1908.3,7.138803]
[1741957708961,3.0,1908.6,1908.3,7.138713]
[1741957709262,3.0,1908.6,1908.3,12.378793]
[1741957710060,3.0,1908.6,1908.5,5.23971]
[1741957710263,5.082,1908.8,1908.4,5.23997]
[1741957710435,15.5601,1908.8,1908.4,5.23997]
[1741957710637,15.5601,1908.8,1908.4,6.4778483]
[1741957710934,10.32105,1908.8,1908.5,0.07975079]
[1741957711462,15.56015,1908.8,1908.5,0.07975079]
[1741957711663,5.082,1908.8,1908.5,0.07975079]
[1741957711961,8.23944,1908.6,1908.2,5.24043]
[1741957712160,3.0,1908.4,1908.1,6.06966]
[1741957712329,3.0,1908.4,1908.1,11.31037]
[1741957712533,3.0,1908.4,1908.1,6.06966]
[1741957713139,3.0,1908.6,1908.4,5.23986]
[1741957713517,3.0,1908.6,1908.5,5.99901]
[1741957713734,3.0,1908.7,1908.5,5.99883]
[1741957713961,3.0,1908.7,1908.4,5.763926]
[1741957714167,13.47857,1908.7,1908.4,0.523986]
[1741957714365,8.23921,1908.7,1908.4,0.523986]
[1741957714522,13.47849,1908.7,1908.4,0.523986]
[1741957714721,8.23921,1908.7,1908.4,5.763956]
[1741957715657,13.47856,1908.7,1908.4,0.523986]
[1741957715866,5.23945,1908.6,1908.3,5.24012]
[1741957716065,5.23945,1908.6,1908.3,5.24017]
[1741957716935,5.23945,1908.6,1908.2,6.06068]
[1741957717138,10.47908,1908.6,1908.2,6.06068]
[1741957717502,7.6478691,1908.7,1908.1,5.24064]
[1741957717753,5.24006,1908.4,1908.1,5.24077]
[1741957718330,10.31806,1908.4,1908.1,5.24077]
[1741957718531,8.24028,1908.3,1907.9,5.24135]
[1741957718868,8.24028,1908.3,1907.9,10.48247]
[1741957719065,8.24028,1908.3,1907.9,5.24122]
[1741957719233,5.24062,1908.2,1907.9,5.24122]
[1741957719565,10.48135,1908.2,1907.8,5.24148]
[1741957719767,5.24062,1908.2,1907.8,5.24148]
[1741957720064,5.24062,1908.2,1907.9,5.24133]
[1741957720640,5.24084,1908.1,1907.8,5.765628]
[1741957720839,9.02,1908.3,1907.6,6.01087]
[1741957721028,3.0,1908.0,1907.8,5.24161]
[1741957721249,3.0,1908.2,1907.9,5.2412]
[1741957721641,8.24059,1908.2,1907.9,5.2412]
[1741957722050,3.0,1908.2,1907.9,5.2412]
[1741957722231,8.24058,1908.2,1907.9,5.2412]
[1741957722431,3.0,1908.2,1907.9,5.2412]
[1741957722658,8.24057,1908.2,1907.9,5.2412]
[1741957724165,3.0,1908.2,1907.9,5.2412]
[1741957724367,13.48138,1908.2,1907.8,10.48308]
[1741957724552,13.48138,1908.2,1907.8,11.531388]
[1741957724949,13.48138,1908.2,1907.8,6.289788]
[1741957725251,13.48138,1908.2,1907.8,11.531298]
[1741957725761,3.0,1908.2,1908.0,5.24104]
[1741957725963,3.0,1908.2,1907.9,5.32009242]
[1741957726169,8.24055,1908.2,1908.1,0.07852202]
[1741957726336,8.24055,1908.2,1907.9,5.24115]
[1741957726534,8.24055,1908.2,1908.0,0.07873221]
[1741957727038,5.24081,1908.1,1908.0,0.07873221]
[1741957727561,10.48179,1908.1,1908.0,0.07873221]
[1741957727753,3.0,1908.0,1907.7,5.24178]
[1741957728264,13.30617,1908.0,1907.6,11.25285]
[1741957728640,8.065,1908.0,1907.7,5.24175]
[1741957729135,8.065,1908.0,1907.8,5.24152]
[1741957729747,8.065,1908.0,1907.9,5.24136]
[1741957731279,8.065,1908.0,1907.8,5.24152]
[1741957731684,8.065,1908.0,1907.8,10.48301]
[1741957731978,8.065,1908.0,1907.8,5.24149]
[1741957732951,8.065,1908.0,1907.8,10.48298]
[1741957734178,8.065,1908.0,1907.8,5.24149]
[1741957734562,8.065,1908.0,1907.7,5.24185]
[1741957734748,8.065,1908.0,1907.7,5.24174]
[1741957735596,8.065,1908.0,1907.8,5.24151]
[1741957736093,8.065,1908.0,1907.8,10.48302]
[1741957737516,8.065,1908.0,1907.8,5.24151]
[1741957737653,8.065,1908.0,1907.8,5.24149]
[1741957737851,8.065,1908.0,1907.8,10.48302]
[1741957739292,3.0,1908.0,1907.9,5.24136]
[1741957739757,3.0,1908.0,1907.8,5.24149]
[1741957739952,12.8890291,1908.0,1907.6,6.01086]
[1741957740178,19.92379201,1908.0,1907.6,5.24204]
[1741957740380,14.68253201,1908.0,1907.6,10.48408]
[1741957740575,19.92381201,1908.0,1907.6,5.24204]
[1741957740780,5.24136,1907.9,1907.7,0.0765603]
[1741957740981,5.24136,1907.9,1907.6,5.24204]
[1741957741175,5.24136,1907.9,1907.8,0.07635004]
[1741957741380,5.24136,1907.9,1907.6,5.24204]
[1741957741585,9.8896091,1907.8,1907.4,6.06826]
[1741957741790,9.8896091,1907.8,1907.5,5.24231]
[1741957741957,8.24174,1907.8,1907.5,5.24231]
[1741957742769,5.24192,1907.7,1907.4,5.24256]
[1741957743358,10.28592,1907.7,1907.3,5.24297]
[1741957743560,9.8902291,1907.6,1907.2,11.29196]
[1741957743790,9.8902291,1907.6,1907.2,12.421156]
[1741957744595,9.8902291,1907.6,1907.3,5.24297]
[1741957744787,3.0,1907.6,1907.4,5.2426]
[1741957745613,3.0,1907.6,1907.4,5.24254]
[1741957745792,3.0,1907.6,1907.5,6.02756]
[1741957746170,3.0,1907.6,1907.5,7.15457]
[1741957746576,3.0,1907.6,1907.3,5.2429]
[1741957746912,8.24222,1907.6,1907.3,5.24284]
[1741957747681,7.6478691,1907.6,1907.1,10.48695]
[1741957747898,9.8907291,1907.4,1907.0,6.02335]
[1741957748207,9.8907291,1907.4,1907.1,5.24355]
[1741957748369,5.052,1907.3,1907.1,5.24355]
[1741957748961,10.29515,1907.3,1906.9,5.24408]
[1741957749385,15.53835,1907.3,1906.9,5.24408]
[1741957749695,10.29515,1907.3,1906.9,5.24408]
[1741957750006,10.29515,1907.3,1906.9,10.48804]
[1741957750405,10.29515,1907.3,1907.0,5.24382]
[1741957750785,5.052,1907.3,1907.0,5.24382]
[1741957751104,5.24329,1907.2,1906.9,5.24409]
[1741957751483,5.24329,1907.2,1906.8,10.48859]
[1741957751799,10.48681,1907.2,1906.8,5.24423]
[1741957751986,5.24329,1907.2,1906.8,10.48848]
[1741957752378,5.24356,1907.1,1906.8,5.24423]
[1741957753084,5.24329,1907.2,1906.8,10.48845]
[1741957753284,3.0,1907.2,1906.9,5.244]
[1741957753479,3.0,1907.2,1907.0,5.2438]
[1741957753685,3.0,1907.2,1906.9,5.244]
[1741957753885,8.2433,1907.2,1906.9,5.244]
[1741957754904,3.0,1907.2,1906.9,5.24395]
[1741957755138,3.0,1907.2,1907.0,5.2438]
[1741957755428,3.0,1907.2,1906.9,10.4879]
[1741957755600,3.0,1907.2,1906.9,5.24395]
[1741957755926,3.0,1907.2,1907.0,5.31950775]
[1741957756507,3.0,1907.2,1907.0,10.56320775]
[1741957756826,5.036,1907.2,1907.0,10.56320775]
[1741957757128,5.4387089,1907.2,1907.0,10.56320775]
[1741957757623,5.4387089,1907.2,1907.0,5.31940775]
[1741957758127,5.036,1907.2,1907.0,5.31938775]
[1741957758626,5.036,1907.2,1907.1,5.24356]
[1741957758928,5.036,1907.2,1907.1,5.31927873]
[1741957759419,5.036,1907.2,1907.1,0.07571873]
[1741957762030,5.036,1907.2,1907.1,5.31927873]
[1741957762325,5.036,1907.2,1907.1,0.07571873]
[1741957762734,5.036,1907.2,1907.1,5.31927873]
[1741957763932,5.022,1907.2,1907.1,5.31927873]
[1741957765433,8.02,1907.3,1907.2,5.24328]
[1741957765797,28.0148691,1907.6,1907.3,5.24288]
[1741957766004,17.347,1907.6,1907.5,5.24246]
[1741957766342,20.347,1907.6,1907.5,5.24246]
[1741957766502,20.347,1907.6,1907.5,5.31733732]
[1741957766903,17.347,1907.6,1907.5,5.31733732]
[1741957767202,20.347,1907.6,1907.5,5.31733732]
[1741957771851,20.347,1907.6,1907.5,0.07487732]
[1741957772643,25.58923,1907.6,1907.2,5.24323]
[1741957772952,25.58923,1907.6,1907.5,0.07477667]
[1741957773133,29.63974991,1907.6,1907.3,5.243]
[1741957773337,25.58923,1907.6,1907.5,0.07482698]
[1741957773827,20.347,1907.6,1907.1,0.8102]
[1741957774148,20.347,1907.6,1907.5,0.07482698]
[1741957774335,20.347,1907.6,1907.4,5.24258]
[1741957774535,20.347,1907.6,1907.5,0.07482698]
[1741957776637,3.0,1907.6,1907.5,0.07482698]
[1741957776831,3.0,1907.6,1907.4,10.48518]
[1741957777043,3.0,1907.6,1907.5,0.07482698]
[1741957777460,3.0,1907.6,1907.5,5.31728698]
[1741957779263,3.0,1907.6,1907.5,0.07482698]
[1741957779760,3.0,1907.6,1907.5,5.31728698]
[1741957785841,3.0,1907.9,1907.8,5.24153]
[1741957786041,8.0,1907.9,1907.8,5.31572109]
[1741957787081,23.366,1908.3,1908.1,5.24078]
[1741957787379,8.003,1908.1,1908.0,5.24105]
[1741957787561,3.0,1908.0,1907.9,5.24134]
[1741957787761,5.003,1908.1,1907.9,5.24134]
[1741957788550,5.003,1908.1,1907.7,6.03418]
[1741957788786,12.8889791,1908.0,1907.6,5.24217]
[1741957788962,3.0,1907.8,1907.6,5.24217]
[1741957789482,3.0,1907.8,1907.5,5.24244]
[1741957789779,3.0,1907.8,1907.4,11.26596]
[1741957789780,8.24178,1907.8,1907.4,11.26596]
[1741957789978,8.24178,1907.8,1907.5,5.24243]
[1741957790151,5.003,1907.7,1907.6,5.24218]
[1741957792067,5.003,1907.7,1907.5,5.24223]
[1741957793987,5.003,1907.7,1907.6,5.24218]
[1741957795585,4.6478691,1908.0,1907.6,0.88015696]
[1741957795785,3.0,1907.8,1907.7,5.24186]
[1741957796168,3.0,1907.8,1907.6,5.24213]
[1741957796473,3.0,1907.8,1907.5,5.24243]
[1741957796474,3.0,1907.8,1907.5,10.48477]
[1741957797283,8.24174,1907.8,1907.4,11.26604]
[1741957797788,8.24174,1907.8,1907.4,0.7807]
[1741957797789,0.55,1907.7,1907.4,0.7807]
[1741957797992,0.55,1907.7,1907.3,5.24285]
[1741957799155,5.792,1907.7,1907.4,5.24273]
[1741957799359,0.55,1907.7,1907.4,5.24273]
[1741957799857,5.79194,1907.7,1907.3,5.24285]
[1741957800061,5.79194,1907.7,1907.4,5.24273]
[1741957800274,0.55,1907.7,1907.4,5.24273]
[1741957800602,5.792,1907.7,1907.3,10.48571]
[1741957800777,0.55,1907.7,1907.4,5.2427]
[1741957800968,0.55,1907.7,1907.4,5.31764673]
[1741957801171,5.79192,1907.7,1907.4,0.07494673]
[1741957801568,7.88524603,1907.7,1907.4,0.07494673]
[1741957801778,7.88524603,1907.7,1907.3,5.2429]
[1741957801969,5.79195,1907.7,1907.3,5.2429]
[1741957802174,5.79195,1907.7,1907.4,0.0750071]
[1741957802401,5.24227,1907.6,1907.4,0.0750071]
[1741957802591,5.24227,1907.6,1907.3,5.24298]
[1741957802791,5.79227,1907.6,1907.5,0.07483199]
[1741957802975,0.55,1907.6,1907.5,0.07483199]
[1741957803175,0.55,1907.6,1907.3,10.48574]
[1741957803383,0.55,1907.6,1907.3,11.614364]
[1741957803586,0.55,1907.6,1907.4,0.07504231]
[1741957805496,0.55,1907.6,1907.4,5.31776231]
[1741957807015,0.55,1907.6,1907.4,0.07504231]
[1741957807426,10.4400991,1907.6,1907.4,0.07504231]
[1741957807669,5.24246,1907.5,1907.2,5.24324]
[1741957808129,15.6824591,1907.6,1907.2,5.24312]
[1741957808422,13.24151,1907.5,1907.2,5.24312]
[1741957808629,5.24315,1907.3,1906.9,5.24407]
[1741957808794,0.55,1907.2,1906.9,0.70680653]
[1741957808997,10.4412891,1907.2,1906.9,0.70680653]
[1741957809431,10.4412891,1907.2,1906.9,5.95089653]
[1741957810098,8.24303,1907.3,1906.9,5.95089653]
[1741957810099,3.0,1907.3,1907.1,6.0351]
[1741957810431,6.02,1907.4,1907.3,5.24301]
[1741957810589,10.29274328,1907.8,1907.4,6.0343]
[1741957810590,4.999,1907.6,1907.4,6.0343]
[1741957810784,4.999,1907.6,1907.4,0.7917]
[1741957811006,4.999,1907.6,1907.4,6.03443]
[1741957811508,4.999,1907.6,1907.4,0.7917]
[1741957811992,4.999,1907.6,1907.4,6.03443]
[1741957812628,4.999,1907.6,1907.4,0.7917]
[1741957812790,4.999,1907.6,1907.3,12.305079]
[1741957812989,4.999,1907.6,1907.4,5.24271]
[1741957813621,4.6478691,1908.0,1907.4,1.2304899]
[1741957813783,5.0,1907.9,1907.5,0.05241706]
[1741957814112,22.344,1908.1,1907.8,5.24163]
[1741957814415,0.55,1908.0,1907.8,10.48313]
[1741957814613,5.549,1908.0,1907.9,5.24136]
[1741957814913,5.549,1908.0,1907.8,5.2415]
[1741957815249,5.549,1908.0,1907.8,10.48303]
[1741957815532,5.549,1908.0,1907.9,5.24136]
[1741957815533,7.999,1908.0,1907.9,5.24136]
[1741957816024,7.999,1908.0,1907.9,5.31534087]
[1741957816843,3.0,1908.0,1907.9,5.31534087]
[1741957817924,3.0,1908.0,1907.9,6.11584087]
[1741957819209,3.0,1908.0,1907.9,0.07398087]
[1741957819611,3.0,1908.0,1907.8,5.24148]
[1741957820110,3.0,1908.0,1907.9,0.07380987]
[1741957820310,3.0,1908.0,1907.8,5.24148]
[1741957820552,3.0,1908.0,1907.9,0.07380987]
[1741957820922,3.0,1908.0,1907.8,10.48293]
[1741957821110,3.0,1908.0,1907.9,0.07380987]
[1741957821311,3.0,1908.0,1907.8,5.24146]
[1741957821508,3.0,1908.0,1907.9,5.31516987]
[1741957823861,3.95087471,1908.3,1908.1,5.24058]
[1741957824031,14.19015471,1908.3,1907.9,5.31499987]
[1741957824231,14.19015471,1908.3,1907.9,5.24119]
[1741957824666,14.19015471,1908.3,1908.0,0.07359966]
[1741957825347,14.19015471,1908.3,1908.0,5.31468966]
[1741957825557,8.94987471,1908.3,1908.0,5.31468966]
[1741957825758,14.19024471,1908.3,1908.0,0.07359966]
[1741957825961,3.0,1908.1,1908.0,0.07359966]
[1741957826271,8.24081,1908.1,1908.0,0.07359966]
[1741957826432,3.0,1908.1,1907.8,5.24149]
[1741957826838,3.0,1908.1,1907.9,0.07380987]
[1741957827038,3.0,1908.1,1907.8,5.24149]
[1741957827270,3.0,1908.1,1907.9,5.31507987]
[1741957827646,3.0,1908.1,1907.9,10.55629987]
[1741957827844,3.0,1908.1,1908.0,5.24109]
[1741957828269,3.0,1908.1,1907.9,5.31502987]
[1741957828443,3.0,1908.1,1908.0,0.07359966]
[1741957829746,3.0,1908.1,1907.9,5.24115]
[1741957829959,3.0,1908.1,1908.0,0.07334314]
[1741957830310,3.0,1908.1,1908.0,5.31443314]
[1741957831980,3.0,1908.3,1908.1,5.2408]
[1741957832391,3.0,1908.3,1908.2,0.07293284]
[1741957832589,3.0,1908.3,1908.2,0.13072186]
[1741957832801,3.0,1908.3,1908.1,5.2408]
[1741957833002,3.0,1908.3,1908.2,0.13066153]
[1741957833379,3.0,1908.3,1908.0,11.28698]
[1741957833588,3.0,1908.3,1908.2,0.13066153]
[1741957834203,3.0,1908.3,1908.0,11.28684]
[1741957834367,3.0,1908.3,1908.2,0.13066153]
[1741957834571,3.0,1908.3,1908.1,5.37168472]
[1741957834770,3.0,1908.3,1908.2,0.13066153]
[1741957835401,3.0,1908.3,1908.1,5.24081]
[1741957835601,3.0,1908.3,1908.2,0.13066153]
[1741957835899,3.0,1908.3,1908.1,5.24081]